fUSD/lending_fUSD_20250507
["ID","MTS","AMOUNT","RATE_DAILY","PERIOD"]
[360166580,1746587444571,-450.0,0.0001957,2]
[360166581,1746587444581,-668.25,0.0001957,2]
[360166582,1746587444590,-450.0,0.0001957,2]
[360166583,1746587444599,-450.0,0.0001957,2]
[360166584,1746587444608,-450.0,0.0001957,2]
[360166585,1746587444617,-450.0,0.0001957,2]
[360166586,1746587444627,-450.0,0.0001957,2]
[360166587,1746587444636,-450.0,0.0001957,2]
[360166588,1746587444645,-520.3,0.0001957,2]
[360166589,1746587444654,-450.0,0.0001957,2]
[360166590,1746587444663,-450.0,0.0001957,2]
[360166591,1746587444672,-760.47,0.0001957,2]
[360166592,1746587444681,-614.84,0.0001957,2]
[360166593,1746587444690,-456.26457856,0.0001957,2]
[360166594,1746587444700,-1219.41,0.0001957,2]
[360166595,1746587444709,-558.89558625,0.0001957,2]
[360166596,1746587444719,-460.31,0.0001957,2]
[360166597,1746587444727,-450.0,0.0001957,2]
[360166598,1746587444737,-450.0,0.0001957,2]
[360166599,1746587444747,-1344.82,0.0001957,2]
[360166600,1746587444758,-450.0,0.0001957,2]
[360166601,1746587444767,-450.0,0.0001957,2]
[360166602,1746587444776,-1335.29,0.0001957,2]
[360166603,1746587444785,-750.67,0.0001957,2]
[360166604,1746587444796,-450.0,0.0001957,2]
[360166605,1746587444806,-450.0,0.0001957,2]
[360166606,1746587444815,-476.98,0.0001957,2]
[360166607,1746587444826,-450.0,0.0001957,2]
[360166608,1746587444835,-1232.09,0.0001957,2]
[360166609,1746587444844,-1004.53,0.0001957,2]
[360166610,1746587444854,-450.0,0.0001957,2]
[360166611,1746587444863,-3018.1,0.0001957,2]
[360166612,1746587444872,-450.0,0.0001957,2]
[360166613,1746587444881,-450.0,0.0001957,2]
[360166614,1746587444890,-450.0,0.0001957,2]
[360166615,1746587444899,-450.0,0.0001957,2]
[360166616,1746587444908,-27966.58,0.0001957,2]
[360166617,1746587444917,-450.0,0.0001957,2]
[360166618,1746587444927,-450.0,0.0001957,2]
[360166619,1746587444936,-565.73,0.0001957,2]
[360166620,1746587444945,-450.0,0.0001957,2]
[360166621,1746587444955,-450.0,0.0001957,2]
[360166622,1746587444964,-996.95,0.0001957,2]
[360166623,1746587444974,-6360.55,0.0001957,2]
[360166624,1746587444983,-575.29,0.0001957,2]
[360166625,1746587444992,-948.45,0.0001957,2]
[360166626,1746587445002,-5288.07,0.0001957,2]
[360166627,1746587445011,-450.0,0.0001957,2]
[360166628,1746587445021,-450.0,0.0001957,2]
[360166629,1746587445031,-500.0,0.0001957,2]
[360166630,1746587445040,-174.00365853,0.0001957,2]
[360166631,1746587445050,-500.0,0.0001957,2]
[360166632,1746587445059,-407.37382958,0.0001957,2]
[360166633,1746587445069,-500.0,0.0001957,2]
[360166634,1746587445078,-450.0,0.00019571,2]
[360166635,1746587445087,-450.0,0.00019571,2]
[360166636,1746587445097,-450.0,0.00019571,2]
[360166637,1746587445106,-450.0,0.00019571,2]
[360166638,1746587445115,-618.31,0.00019571,2]
[360166639,1746587445125,-450.0,0.00019571,2]
[360166640,1746587445134,-450.0,0.00019571,2]
[360166641,1746587445143,-450.0,0.00019571,2]
[360166642,1746587445153,-450.0,0.00019571,2]
[360166643,1746587445162,-450.0,0.00019571,2]
[360166644,1746587445172,-303.97583285,0.00019571,2]
[360166645,1746587445182,-450.0,0.00019571,2]
[360166646,1746587445191,-450.0,0.00019572,2]
[360166647,1746587445201,-450.0,0.00019572,2]
[360166648,1746587445211,-450.0,0.00019572,2]
[360166649,1746587445220,-450.0,0.00019572,2]
[360166650,1746587445229,-175.41,0.00019572,2]
[360166651,1746587445238,-535.99,0.00019572,2]
[360166652,1746587445248,-450.0,0.00019572,2]
[360166653,1746587445258,-631.66,0.00019572,2]
[360166654,1746587445267,-668.25,0.00019572,2]
[360166655,1746587445276,-450.0,0.00019572,2]
[360166656,1746587445285,-450.0,0.00019572,2]
[360166657,1746587445295,-450.0,0.00019572,2]
[360166658,1746587445304,-450.0,0.00019572,2]
[360166659,1746587445312,-450.0,0.00019572,2]
[360166660,1746587445322,-450.0,0.00019572,2]
[360166661,1746587445332,-750.67,0.00019572,2]
[360166662,1746587445341,-450.0,0.00019572,2]
[360166663,1746587445351,-450.0,0.00019572,2]
[360166664,1746587445360,-450.0,0.00019572,2]
[360166665,1746587445369,-450.0,0.00019572,2]
[360166666,1746587445378,-450.0,0.00019572,2]
[360166667,1746587445387,-2632.398,0.00019584,2]
[360166668,1746587445396,-180.912,0.00019584,2]
[360166669,1746587445405,-450.0,0.00019593,2]
[360166670,1746587445415,-470.0,0.00019593,2]
[360166671,1746587445424,-452.41443463,0.00019593,2]
[360166672,1746587445433,-450.0,0.00019593,2]
[360166673,1746587445442,-450.0,0.00019593,2]
[360166674,1746587445451,-450.0,0.00019593,2]
[360166675,1746587445461,-450.0,0.00019593,2]
[360166676,1746587445470,-450.0,0.00019594,2]
[360166677,1746587445479,-450.0,0.00019594,2]
[360166678,1746587445488,-450.0,0.00019594,2]
[360166679,1746587445497,-450.0,0.00019594,2]
[360166680,1746587445507,-450.0,0.00019594,2]
[360166681,1746587445516,-450.0,0.00019594,2]
[360166682,1746587445525,-450.0,0.00019594,2]
[360166683,1746587445534,-450.0,0.00019594,2]
[360166684,1746587445544,-450.0,0.00019594,2]
[360166685,1746587445553,-450.0,0.00019594,2]
[360166686,1746587445562,-760.47,0.00019594,2]
[360166687,1746587445571,-460.31,0.00019594,2]
[360166688,1746587445580,-450.0,0.00019594,2]
[360166689,1746587445589,-476.98,0.00019594,2]
[360166690,1746587445599,-450.0,0.00019594,2]
[360166691,1746587445607,-450.0,0.00019594,2]
[360166692,1746587445616,-450.0,0.00019594,2]
[360166693,1746587445626,-450.0,0.00019594,2]
[360166694,1746587445635,-450.0,0.000196,2]
[360166695,1746587445643,-399.18482237,0.000196,2]
[360166696,1746587445652,-450.0,0.000196,2]
[360166697,1746587445662,-618.31,0.000196,2]
[360166698,1746587445671,-450.0,0.000196,2]
[360166699,1746587445680,-450.0,0.000196,2]
[360166700,1746587445689,-450.0,0.000196,2]
[360166701,1746587445699,-1711.0,0.000196,2]
[360166702,1746587445708,-450.0,0.000196,2]
[360166703,1746587445719,-450.0,0.000196,2]
[360166704,1746587445729,-450.0,0.000196,2]
[360166705,1746587445738,-4784.43847549,0.000196,2]
[360166706,1746587445749,-1100.0,0.000196,7]
[360166707,1746587445759,-450.0,0.00019602,2]
[360166708,1746587445768,-450.0,0.00019602,2]
[360166709,1746587445782,-450.0,0.00019602,2]
[360166710,1746587445791,-258.23,0.00019602,2]
[360166711,1746587445800,-450.0,0.00019602,2]
[360166712,1746587445809,-450.0,0.00019602,2]
[360166713,1746587445819,-562.85,0.00019602,2]
[360166714,1746587445830,-450.0,0.00019602,2]
[360166715,1746587445839,-450.0,0.00019602,2]
[360166716,1746587445849,-969.36,0.00019602,2]
[360166717,1746587445858,-989.7,0.00019602,2]
[360166718,1746587445867,-450.0,0.00019602,2]
[360166719,1746587445876,-450.0,0.00019602,2]
[360166720,1746587445885,-450.0,0.00019602,2]
[360166721,1746587445895,-423.318285,0.00019602,2]
[360166722,1746587445904,-572.0,0.00019602,2]
[360166723,1746587445913,-450.0,0.00019602,2]
[360166724,1746587445923,-1259.92,0.00019602,2]
[360166725,1746587445932,-490.19885,0.00019602,2]
[360166726,1746587445941,-567.225333,0.00019602,2]
[360166727,1746587445950,-450.0,0.00019603,2]
[360166728,1746587445959,-450.0,0.00019603,2]
[360166729,1746587445970,-450.0,0.00019603,2]
[360166730,1746587445979,-450.0,0.00019603,2]
[360166731,1746587445988,-200.1607676,0.00019603,2]
[360166732,1746587445997,-450.0,0.00019603,2]
[360166733,1746587446008,-450.0,0.00019603,2]
[360166734,1746587446017,-450.0,0.00019603,2]
[360166735,1746587446027,-450.0,0.00019603,2]
[360166736,1746587446036,-599.35378014,0.00019603,2]
[360166737,1746587446045,-450.0,0.00019603,2]
[360166738,1746587446054,-450.0,0.00019603,2]
[360166739,1746587446064,-450.0,0.00019603,2]
[360166740,1746587446074,-450.0,0.00019603,2]
[360166741,1746587446083,-450.0,0.00019603,2]
[360166742,1746587446092,-450.0,0.00019603,2]
[360166743,1746587446102,-450.0,0.00019603,2]
[360166744,1746587446111,-474.72,0.00019603,2]
[360166745,1746587446121,-457.47,0.00019603,2]
[360166746,1746587446130,-450.0,0.00019603,2]
[360166747,1746587446140,-731.05,0.00019603,2]
[360166748,1746587446149,-450.0,0.00019603,2]
[360166749,1746587446159,-450.0,0.00019603,2]
[360166750,1746587446168,-314.85401755,0.00019603,2]
[360166751,1746587446177,-589.1,0.00019603,2]
[360166752,1746587446187,-1139.69,0.00019603,2]
[360166753,1746587446196,-450.0,0.00019603,2]
[360166754,1746587446206,-450.0,0.00019603,2]
[360166755,1746587446215,-771.81,0.00019603,2]
[360166756,1746587446225,-736.24,0.00019603,2]
[360166757,1746587446234,-450.0,0.00019603,2]
[360166758,1746587446244,-450.0,0.00019603,2]
[360166759,1746587446253,-450.0,0.00019603,2]
[360166760,1746587446263,-450.0,0.00019603,2]
[360166761,1746587446272,-459.97,0.00019603,2]
[360166762,1746587446281,-450.0,0.00019603,2]
[360166763,1746587446291,-450.0,0.00019603,2]
[360166764,1746587446300,-530.22,0.00019603,2]
[360166765,1746587446310,-450.0,0.00019603,2]
[360166766,1746587446319,-26031.64,0.00019603,2]
[360166767,1746587446329,-450.0,0.00019603,2]
[360166768,1746587446338,-450.0,0.00019603,2]
[360166769,1746587446348,-612.8,0.00019603,2]
[360166770,1746587446357,-450.0,0.00019603,2]
[360166771,1746587446366,-450.0,0.00019603,2]
[360166772,1746587446375,-450.0,0.00019603,2]
[360166773,1746587446384,-450.0,0.00019603,2]
[360166774,1746587446394,-450.0,0.00019603,2]
[360166775,1746587446403,-179.1499105,0.00019603,2]
[360166776,1746587446413,-450.0,0.00019603,2]
[360166777,1746587446422,-506.84870607,0.00019603,2]
[360166778,1746587446432,-450.0,0.00019603,2]
[360166779,1746587446441,-512.26018042,0.00019603,2]
[360166780,1746587446450,-529.0949857,0.00019603,2]
[360166781,1746587446459,-275.87913113,0.00019603,2]
[360166782,1746587446469,-268.91204822,0.00019603,2]
[360166783,1746587446479,-450.0,0.00019603,2]
[360166784,1746587446488,-450.0,0.00019603,2]
[360166785,1746587446498,-470.0,0.00019603,2]
[360166786,1746587446507,-1595.53,0.00019603,2]
[360166787,1746587446517,-450.0,0.00019603,2]
[360166788,1746587446526,-450.0,0.00019603,2]
[360166789,1746587446535,-335.94169893,0.00019603,2]
[360166790,1746587446544,-955.38,0.00019603,2]
[360166791,1746587446554,-450.0,0.00019603,2]
[360166792,1746587446563,-450.0,0.00019603,2]
[360166793,1746587446574,-500.0,0.00019603,2]
[360166794,1746587446583,-450.0,0.00019603,2]
[360166795,1746587446592,-232.53236692,0.00019603,2]
[360166796,1746587446602,-450.0,0.00019603,2]
[360166797,1746587446611,-450.0,0.00019603,2]
[360166798,1746587446620,-1242.08,0.00019603,2]
[360166799,1746587446629,-2272.45,0.00019603,2]
[360166800,1746587446639,-490.0,0.00019603,2]
[360166801,1746587446648,-450.0,0.00019603,2]
[360166802,1746587446657,-1811.56,0.00019603,2]
[360166803,1746587446666,-610.8,0.00019603,2]
[360166804,1746587446675,-450.0,0.00019603,2]
[360166805,1746587446685,-450.0,0.00019603,2]
[360166806,1746587446694,-450.0,0.00019603,2]
[360166807,1746587446704,-645.63,0.00019603,2]
[360166808,1746587446713,-450.0,0.00019603,2]
[360166809,1746587446722,-450.0,0.00019603,2]
[360166810,1746587446732,-450.0,0.00019603,2]
[360166811,1746587446741,-463.47058947,0.00019603,2]
[360166812,1746587446754,-450.0,0.00019603,2]
[360166813,1746587446763,-472.37,0.00019603,2]
[360166814,1746587446773,-450.0,0.00019603,2]
[360166815,1746587446782,-450.0,0.00019603,2]
[360166816,1746587446791,-450.0,0.00019603,2]
[360166817,1746587446801,-456.56,0.00019603,2]
[360166818,1746587446810,-1548.58,0.00019603,2]
[360166819,1746587446821,-450.0,0.00019603,2]
[360166820,1746587446830,-450.0,0.00019603,2]
[360166821,1746587446839,-450.0,0.00019603,2]
[360166822,1746587446848,-450.0,0.00019603,2]
[360166823,1746587446858,-6022.15675595,0.00019613,2]
[360166824,1746587446867,-151.0,0.00019613,2]
[360166825,1746587446876,-3868.9734196,0.00019637,2]
[360166826,1746587446885,-17584.6866874,0.00019637,2]
[360166827,1746587446894,-450.0,0.00019638,2]
[360166828,1746587446903,-614.84,0.00019638,2]
[360166829,1746587446912,-317.03346915,0.00019638,2]
[360166830,1746587446922,-450.0,0.00019638,2]
[360166831,1746587446931,-1232.09,0.00019638,2]
[360166832,1746587446940,-1004.53,0.00019638,2]
[360166833,1746587446949,-450.0,0.00019638,2]
[360166834,1746587446959,-565.73,0.00019638,2]
[360166835,1746587446968,-450.0,0.00019643,2]
[360166836,1746587446977,-1898.99,0.00019643,2]
[360166837,1746587446986,-1071.76,0.00019643,2]
[360166838,1746587446995,-450.0,0.00019643,2]
[360166839,1746587447004,-450.0,0.00019643,2]
[360166840,1746587447014,-989.03,0.00019643,2]
[360166841,1746587447023,-182.33876259,0.00019643,2]
[360166842,1746587447032,-565.18,0.00019643,2]
[360166843,1746587447042,-450.0,0.00019643,2]
[360166844,1746587447051,-450.0,0.00019643,2]
[360166845,1746587447061,-167.62782789,0.00019643,2]
[360166846,1746587447071,-500.0,0.00019643,2]
[360166847,1746587447080,-450.0,0.00019643,2]
[360166848,1746587447090,-450.0,0.00019643,2]
[360166849,1746587447100,-1001.79,0.00019643,2]
[360166850,1746587447109,-450.0,0.00019643,2]
[360166851,1746587447118,-453.4,0.00019643,2]
[360166852,1746587447128,-450.0,0.00019643,2]
[360166853,1746587447137,-521.61,0.00019643,2]
[360166854,1746587447146,-450.0,0.00019643,2]
[360166855,1746587447155,-450.0,0.00019643,2]
[360166856,1746587447164,-450.0,0.00019643,2]
[360166857,1746587447174,-2000.01,0.00019643,2]
[360166858,1746587447184,-450.0,0.00019643,2]
[360166859,1746587447193,-450.0,0.00019643,2]
[360166860,1746587447359,-1195.42,0.00019643,2]
[360166861,1746587447369,-450.0,0.00019643,2]
[360166862,1746587447379,-804.96,0.00019643,2]
[360166863,1746587447388,-1190.96,0.00019643,2]
[360166864,1746587447398,-2342.0,0.00019644,2]
[360166865,1746587447407,-450.0,0.00019644,2]
[360166866,1746587447416,-450.0,0.00019644,2]
[360166867,1746587447425,-450.0,0.00019644,2]
[360166868,1746587447435,-450.0,0.00019644,2]
[360166869,1746587447444,-450.0,0.00019644,2]
[360166870,1746587447454,-450.0,0.00019644,2]
[360166871,1746587447465,-450.0,0.00019644,2]
[360166872,1746587447474,-450.0,0.00019644,2]
[360166873,1746587447484,-450.0,0.00019644,2]
[360166874,1746587447493,-450.0,0.00019644,2]
[360166875,1746587447502,-450.0,0.00019644,2]
[360166876,1746587447511,-450.0,0.00019644,2]
[360166877,1746587447521,-450.0,0.00019644,2]
[360166878,1746587447530,-450.0,0.00019644,2]
[360166879,1746587447539,-450.0,0.00019644,2]
[360166880,1746587447549,-474.72,0.00019644,2]
[360166881,1746587447558,-457.47,0.00019644,2]
[360166882,1746587447567,-450.0,0.00019644,2]
[360166883,1746587447577,-731.05,0.00019644,2]
[360166884,1746587447586,-450.0,0.00019644,2]
[360166885,1746587447595,-450.0,0.00019644,2]
[360166886,1746587447604,-450.0,0.00019644,2]
[360166887,1746587447616,-520.3,0.00019644,2]
[360166888,1746587447626,-589.1,0.00019644,2]
[360166889,1746587447635,-1219.41,0.00019644,2]
[360166890,1746587447645,-1139.69,0.00019644,2]
[360166891,1746587447654,-1344.82,0.00019644,2]
[360166892,1746587447663,-450.0,0.00019644,2]
[360166893,1746587447673,-1335.29,0.00019644,2]
[360166894,1746587447683,-771.81,0.00019644,2]
[360166895,1746587447692,-450.0,0.00019644,2]
[360166896,1746587447701,-736.24,0.00019644,2]
[360166897,1746587447710,-450.0,0.00019644,2]
[360166898,1746587447722,-450.0,0.00019644,2]
[360166899,1746587447734,-450.0,0.00019644,2]
[360166900,1746587447744,-3018.1,0.00019644,2]
[360166901,1746587447757,-27966.58,0.00019644,2]
[360166902,1746587447767,-459.97,0.00019644,2]
[360166903,1746587447776,-450.0,0.00019644,2]
[360166904,1746587447785,-450.0,0.00019644,2]
[360166905,1746587447797,-530.22,0.00019644,2]
[360166906,1746587447806,-591.76102963,0.00019644,2]
[360166907,1746587447816,-26031.64,0.00019644,2]
[360166908,1746587447827,-450.0,0.00019644,2]
[360166909,1746587447836,-466.29695875,0.00019644,2]
[360166910,1746587447846,-996.95,0.00019644,2]
[360166911,1746587447855,-612.8,0.00019644,2]
[360166912,1746587447864,-450.0,0.00019644,2]
[360166913,1746587447873,-450.0,0.00019644,2]
[360166914,1746587447882,-450.0,0.00019644,2]
[360166915,1746587447892,-6360.55,0.00019644,2]
[360166916,1746587447902,-450.0,0.00019644,2]
[360166917,1746587447911,-575.29,0.00019644,2]
[360166918,1746587447920,-450.0,0.00019644,2]
[360166919,1746587447929,-948.45,0.00019644,2]
[360166920,1746587447939,-450.0,0.00019644,2]
[360166921,1746587447948,-5288.07,0.00019644,2]
[360166922,1746587447958,-450.0,0.00019644,2]
[360166923,1746587447968,-450.0,0.00019644,2]
[360166924,1746587447977,-1595.53,0.00019644,2]
[360166925,1746587447987,-450.0,0.00019644,2]
[360166926,1746587447996,-955.38,0.00019644,2]
[360166927,1746587448006,-450.0,0.00019644,2]
[360166928,1746587448016,-500.0,0.00019644,2]
[360166929,1746587448026,-339.62042888,0.00019644,2]
[360166930,1746587448035,-1242.08,0.00019644,2]
[360166931,1746587448045,-2272.45,0.00019644,2]
[360166932,1746587448055,-450.0,0.00019644,2]
[360166933,1746587448065,-1811.56,0.00019644,2]
[360166934,1746587448074,-610.8,0.00019644,2]
[360166935,1746587448083,-450.0,0.00019644,2]
[360166936,1746587448093,-645.63,0.00019644,2]
[360166937,1746587448103,-450.0,0.00019644,2]
[360166938,1746587448113,-450.0,0.00019644,2]
[360166939,1746587448123,-450.0,0.00019644,2]
[360166940,1746587448132,-450.0,0.00019644,2]
[360166941,1746587448143,-462.04760492,0.00019644,2]
[360166942,1746587448153,-472.37,0.00019644,2]
[360166943,1746587448163,-450.0,0.00019644,2]
[360166944,1746587448173,-262.16,0.00019644,2]
[360166945,1746587448182,-450.0,0.00019644,2]
[360166946,1746587448192,-450.0,0.00019644,2]
[360166947,1746587448202,-456.56,0.00019644,2]
[360166948,1746587448212,-450.0,0.00019644,2]
[360166949,1746587448222,-1548.58,0.00019644,2]
[360166950,1746587448232,-234.61795919,0.00019644,2]
[360166951,1746587448242,-450.0,0.00019644,2]
[360166952,1746587448252,-450.0,0.00019644,2]
[360166953,1746587448262,-450.0,0.00019644,2]
[360166954,1746587448272,-450.0,0.00019644,2]
[360166955,1746587448281,-5947.3386743,0.00019645,2]
[360166956,1746587448290,-42506.0480862,0.00019645,2]
[360166957,1746587448300,-93304.6396666,0.00019645,2]
[360166958,1746587448310,-450.0,0.00019648,2]
[360166959,1746587448320,-1898.99,0.00019648,2]
[360166960,1746587448330,-1071.76,0.00019648,2]
[360166961,1746587448340,-450.0,0.00019648,2]
[360166962,1746587448350,-450.0,0.00019648,2]
[360166963,1746587448361,-989.03,0.00019648,2]
[360166964,1746587448371,-565.18,0.00019648,2]
[360166965,1746587448381,-450.0,0.00019648,2]
[360166966,1746587448391,-450.0,0.00019648,2]
[360166967,1746587448400,-450.0,0.00019648,2]
[360166968,1746587448410,-450.0,0.00019648,2]
[360166969,1746587448420,-450.0,0.00019648,2]
[360166970,1746587448430,-500.0,0.00019648,2]
[360166971,1746587448440,-450.0,0.00019648,2]
[360166972,1746587448449,-450.0,0.00019648,2]
[360166973,1746587448460,-450.0,0.00019648,2]
[360166974,1746587448471,-450.0,0.00019648,2]
[360166975,1746587448481,-1001.79,0.00019648,2]
[360166976,1746587448492,-562.85,0.00019648,2]
[360166977,1746587448502,-450.0,0.00019648,2]
[360166978,1746587448512,-453.4,0.00019648,2]
[360166979,1746587448522,-450.0,0.00019648,2]
[360166980,1746587448532,-450.0,0.00019648,2]
[360166981,1746587448542,-450.0,0.00019648,2]
[360166982,1746587448552,-521.61,0.00019648,2]
[360166983,1746587448561,-969.36,0.00019648,2]
[360166984,1746587448571,-989.7,0.00019648,2]
[360166985,1746587448581,-450.0,0.00019648,2]
[360166986,1746587448591,-450.0,0.00019648,2]
[360166987,1746587448600,-450.0,0.00019648,2]
[360166988,1746587448618,-450.0,0.00019648,2]
[360166989,1746587448628,-2000.01,0.00019648,2]
[360166990,1746587448638,-450.0,0.00019648,2]
[360166991,1746587448648,-572.0,0.00019648,2]
[360166992,1746587448658,-450.0,0.00019648,2]
[360166993,1746587448668,-1195.42,0.00019648,2]
[360166994,1746587448678,-450.0,0.00019648,2]
[360166995,1746587448688,-325.82,0.00019648,2]
[360166996,1746587448698,-1259.92,0.00019648,2]
[360166997,1746587448709,-804.96,0.00019648,2]
[360166998,1746587448719,-1190.96,0.00019648,2]
[360166999,1746587448729,-516.22971578,0.00019649,2]
[360167000,1746587448739,-450.0,0.00019649,2]
[360167001,1746587448751,-450.0,0.00019649,2]
[360167002,1746587448761,-450.0,0.00019649,2]
[360167003,1746587448771,-450.0,0.00019649,2]
[360167004,1746587448781,-450.0,0.00019649,2]
[360167005,1746587448791,-450.0,0.00019649,2]
[360167006,1746587448803,-450.0,0.00019649,2]
[360167007,1746587448812,-450.0,0.00019649,2]
[360167008,1746587448823,-450.0,0.00019649,2]
[360167009,1746587448833,-450.0,0.00019649,2]
[360167010,1746587448843,-450.0,0.00019649,2]
[360167011,1746587448853,-450.0,0.00019649,2]
[360167012,1746587448863,-450.0,0.00019649,2]
[360167013,1746587448872,-450.0,0.00019649,2]
[360167014,1746587448882,-450.0,0.00019649,2]
[360167015,1746587448891,-450.0,0.00019649,2]
[360167016,1746587448901,-535.99,0.00019649,2]
[360167017,1746587448911,-450.0,0.00019649,2]
[360167018,1746587448920,-450.0,0.00019649,2]
[360167019,1746587448930,-450.0,0.00019649,2]
[360167020,1746587448939,-474.72,0.00019649,2]
[360167021,1746587448949,-631.66,0.00019649,2]
[360167022,1746587448959,-457.47,0.00019649,2]
[360167023,1746587448969,-668.25,0.00019649,2]
[360167024,1746587448979,-450.0,0.00019649,2]
[360167025,1746587448988,-450.0,0.00019649,2]
[360167026,1746587448998,-450.0,0.00019649,2]
[360167027,1746587449007,-731.05,0.00019649,2]
[360167028,1746587449017,-450.0,0.00019649,2]
[360167029,1746587449026,-450.0,0.00019649,2]
[360167030,1746587449035,-450.0,0.00019649,2]
[360167031,1746587449045,-450.0,0.00019649,2]
[360167032,1746587449054,-450.0,0.00019649,2]
[360167033,1746587449063,-589.1,0.00019649,2]
[360167034,1746587449072,-614.84,0.00019649,2]
[360167035,1746587449082,-1139.69,0.00019649,2]
[360167036,1746587449092,-450.0,0.00019649,2]
[360167037,1746587449101,-450.0,0.00019649,2]
[360167038,1746587449110,-450.0,0.00019649,2]
[360167039,1746587449120,-750.67,0.00019649,2]
[360167040,1746587449130,-450.0,0.00019649,2]
[360167041,1746587449139,-771.81,0.00019649,2]
[360167042,1746587449149,-492.04527846,0.00019649,2]
[360167043,1746587449159,-736.24,0.00019649,2]
[360167044,1746587449169,-1232.09,0.00019649,2]
[360167045,1746587449179,-450.0,0.00019649,2]
[360167046,1746587449188,-1004.53,0.00019649,2]
[360167047,1746587449197,-450.0,0.00019649,2]
[360167048,1746587449207,-450.0,0.00019649,2]
[360167049,1746587449217,-450.0,0.00019649,2]
[360167050,1746587449226,-459.97,0.00019649,2]
[360167051,1746587449236,-450.0,0.00019649,2]
[360167052,1746587449246,-565.73,0.00019649,2]
[360167053,1746587449255,-450.0,0.00019649,2]
[360167054,1746587449265,-530.22,0.00019649,2]
[360167055,1746587449275,-26031.64,0.00019649,2]
[360167056,1746587449285,-450.0,0.00019649,2]
[360167057,1746587449295,-450.0,0.00019649,2]
[360167058,1746587449305,-612.8,0.00019649,2]
[360167059,1746587449315,-450.0,0.00019649,2]
[360167060,1746587449325,-450.0,0.00019649,2]
[360167061,1746587449335,-308.03007449,0.00019649,2]
[360167062,1746587449344,-254.98621052,0.00019649,2]
[360167063,1746587449354,-450.0,0.00019649,2]
[360167064,1746587449363,-450.0,0.00019649,2]
[360167065,1746587449373,-450.0,0.00019649,2]
[360167066,1746587449383,-1595.53,0.00019649,2]
[360167067,1746587449393,-151.0,0.00019649,2]
[360167068,1746587449403,-390.25023045,0.00019649,2]
[360167069,1746587449412,-955.38,0.00019649,2]
[360167070,1746587449422,-500.0,0.00019649,2]
[360167071,1746587449432,-1242.08,0.00019649,2]
[360167072,1746587449442,-2272.45,0.00019649,2]
[360167073,1746587449452,-450.0,0.00019649,2]
[360167074,1746587449462,-1811.56,0.00019649,2]
[360167075,1746587449472,-610.8,0.00019649,2]
[360167076,1746587449482,-450.0,0.00019649,2]
[360167077,1746587449491,-645.63,0.00019649,2]
[360167078,1746587449501,-450.0,0.00019649,2]
[360167079,1746587449511,-193.16,0.00019649,2]